bitfinex/quotes_ETHUSD_20241108
["timestamp","ask_amount","ask_price","bid_price","bid_amount"]
[1731089034698,0.13700362,2920.4,2918.7,0.47368933]
[1731089034699,0.8554238,2919.8,2918.7,0.35588873]
[1731089035062,0.8135,2919.6,2918.0,0.7964]
[1731089035259,0.8035,2919.4,2918.1,0.35601013]
[1731089035483,0.08565279,2919.5,2918.1,0.35601013]
[1731089035484,0.88915286,2919.3,2918.1,0.35601013]
[1731089035694,0.88915286,2919.3,2918.1,0.72053981]
[1731089036512,0.88915286,2919.3,2918.0,3.28928669]
[1731089036513,0.7662,2918.9,2917.4,3.28928669]
[1731089036806,0.7778,2918.7,2917.4,3.28928669]
[1731089036960,0.7778,2918.5,2917.5,0.35607711]
[1731089038010,0.7778,2918.5,2917.6,0.55]
[1731089038159,0.7778,2918.5,2917.7,0.39060771]
[1731089040166,0.85486932,2918.4,2917.7,0.39060771]
[1731089040494,0.7692,2918.4,2917.8,0.06853876]
[1731089041488,0.7692,2918.4,2917.7,3.6798944]
[1731089041661,0.7692,2918.4,2917.8,0.36798944]
[1731089042498,0.7692,2918.4,2917.7,3.28928669]
[1731089043762,0.7692,2918.4,2917.5,3.35607711]
[1731089043962,0.7534,2918.2,2917.5,3.35607711]
[1731089044933,0.7534,2918.2,2917.5,3.0]
[1731089045129,0.7727,2918.0,2916.8,3.28928669]
[1731089045314,0.01,2918.4,2916.8,3.28928669]
[1731089045315,0.7727,2917.8,2916.8,0.45869364]
[1731089045494,0.8097,2917.6,2916.8,0.3561374]
[1731089045684,0.89539726,2917.5,2916.8,0.3561374]
[1731089046046,0.89539726,2917.5,2916.5,3.64568521]
[1731089046334,0.89539726,2917.5,2916.8,3.28928669]
[1731089046491,0.8097,2917.5,2917.1,3.28928669]
[1731089046686,0.8097,2917.5,2917.2,0.06855196]
[1731089046928,0.8097,2917.5,2917.1,3.28928669]
[1731089047746,0.8097,2917.5,2916.8,3.83928669]
[1731089048054,0.8097,2917.5,2917.0,0.55]
[1731089048718,0.8097,2917.5,2917.1,0.06855202]
[1731089049240,0.8097,2917.5,2916.9,0.46077867]
[1731089049241,0.8097,2917.5,2916.9,0.52933703]
[1731089049698,0.8097,2917.5,2916.8,3.28928669]
[1731089049897,0.8097,2917.5,2916.9,0.06855837]
[1731089050516,0.8097,2917.5,2916.8,3.28928669]
[1731089051523,0.8097,2917.5,2916.9,0.06855537]
[1731089051899,0.8097,2917.5,2916.8,3.28928669]
[1731089052214,0.8097,2917.5,2916.9,0.3974864]
[1731089054725,0.8097,2917.5,2916.9,0.32892867]
[1731089055093,0.8097,2917.5,2916.9,0.39748646]
[1731089056006,0.8097,2917.5,2916.9,0.32892867]
[1731089056338,0.91359728,2917.4,2916.5,3.28928669]
[1731089056521,0.91359728,2917.4,2916.6,0.42409824]
[1731089057631,0.8279,2917.4,2916.6,0.42409824]
[1731089057927,0.8279,2917.4,2916.7,0.55]
[1731089058732,0.8279,2917.4,2916.8,3.35784575]
[1731089058951,0.8279,2917.4,2917.1,3.28928669]
[1731089059926,0.8279,2917.4,2917.0,0.06855603]
[1731089060343,0.7656,2917.7,2917.2,0.55]
[1731089060634,0.7656,2918.2,2917.6,3.28928669]
[1731089060930,0.7656,2918.2,2917.6,3.61821536]
[1731089062043,0.7656,2918.2,2917.7,0.06853985]
[1731089062226,0.7656,2918.2,2917.7,3.06853985]
[1731089063151,6.17928669,2919.6,2917.7,3.06853985]
[1731089063152,0.799,2918.6,2918.0,0.55]
[1731089063431,0.799,2918.6,2918.3,3.28928669]
[1731089063730,0.08566887,2919.4,2918.4,0.39745349]
[1731089063731,0.8309,2919.3,2918.4,0.39745349]
[1731089063902,0.08564582,2919.2,2918.6,3.28928669]
[1731089064500,0.8309,2919.1,2918.4,3.32892867]
[1731089064721,0.08565492,2919.0,2918.4,3.32892867]
[1731089065127,0.8309,2919.1,2918.4,3.3974526]
[1731089065430,0.8309,2919.1,2918.5,0.66867393]
[1731089066334,0.08564611,2919.0,2918.4,3.32892867]
[1731089068993,0.08564611,2919.0,2918.3,3.28928669]
[1731089071194,0.8309,2919.1,2918.4,0.06852389]
[1731089071541,0.2,2919.5,2919.0,3.0]
[1731089071851,0.2,2919.5,2919.1,4.17799276]
[1731089071997,0.2,2919.5,2919.2,3.0]
[1731089072597,0.2,2919.5,2918.9,3.0]
[1731089072813,0.8329,2919.4,2918.9,3.0]
[1731089073221,0.8329,2919.4,2918.9,3.06851149]
[1731089073438,0.8329,2919.4,2919.0,0.63577982]
[1731089073744,0.8329,2919.4,2918.9,0.06851149]
[1731089074297,0.8329,2919.4,2918.8,3.28928669]
[1731089074530,0.8329,2919.4,2918.9,0.0685108]
[1731089074726,0.8329,2919.4,2918.8,3.28928669]
[1731089075245,0.8329,2919.4,2918.9,0.0685108]
[1731089075429,0.8329,2919.4,2919.0,0.33577975]
[1731089078201,0.8329,2919.4,2918.8,3.28928669]
[1731089078654,0.8329,2919.4,2918.9,0.06851083]
[1731089079638,0.08563857,2919.3,2918.6,3.56697585]
[1731089079940,0.7711,2919.2,2918.5,3.28928669]
[1731089080146,0.08564768,2919.1,2918.5,3.28928669]
[1731089081443,0.8053,2919.0,2918.2,3.28928669]
[1731089081600,0.08565503,2918.9,2918.3,3.32892867]
[1731089082644,0.08565502,2918.9,2918.3,3.32892867]
[1731089083537,0.8053,2919.0,2918.3,3.32892867]
[1731089085445,0.79016133,2919.0,2918.3,3.32892867]
[1731089085643,0.79016133,2919.0,2918.4,0.66182154]
[1731089086227,0.79016133,2919.0,2918.5,3.28928669]
[1731089089671,0.085655,2918.9,2917.7,0.7508]
[1731089089992,0.8192,2918.8,2918.0,3.0]
[1731089090387,0.08566269,2918.7,2918.0,3.0]
[1731089090678,0.8192,2918.6,2918.0,3.0]
[1731089091041,0.8192,2918.6,2917.9,3.28928669]
[1731089093796,0.8192,2918.6,2917.5,0.35568429]
[1731089094004,0.8883708,2918.5,2917.7,3.0]
[1731089094413,0.8883708,2918.5,2917.5,0.35568429]
[1731089095348,0.8983708,2918.5,2917.5,0.35568429]
[1731089095517,0.8983708,2918.5,2917.0,0.49514969]
[1731089095518,0.9083708,2918.5,2917.0,3.28928669]
[1731089095697,0.9083708,2918.5,2917.1,0.32892867]
[1731089095698,0.01,2918.3,2917.1,0.32892867]
[1731089096051,0.8272,2918.2,2916.7,3.78443638]
[1731089096196,0.7632,2918.0,2916.7,3.78443638]
[1731089096401,0.7632,2917.8,2916.8,0.06855837]
[1731089096608,0.7632,2917.6,2917.0,3.28928669]
[1731089096834,0.7632,2917.6,2917.3,3.28928669]
[1731089097898,0.7704,2917.9,2917.3,3.78443638]
[1731089098227,0.7704,2917.9,2917.4,3.55]
[1731089098536,0.7704,2917.9,2917.5,0.73344364]
[1731089103123,0.10567867,2918.9,2917.6,0.55]
[1731089103124,0.7721,2918.8,2917.6,0.55]
[1731089103330,0.7721,2918.6,2917.6,3.83928669]
[1731089103644,0.7721,2918.4,2917.7,0.45727303]
[1731089104496,0.10567106,2918.9,2917.7,0.45727303]
[1731089104497,0.7507,2918.2,2917.7,0.45727303]
[1731089104732,0.7507,2918.2,2917.5,0.73344364]
[1731089107717,0.08567605,2918.1,2917.3,3.0]
[1731089107944,0.7583,2918.0,2917.1,3.0]
[1731089108117,0.08568636,2917.9,2917.1,3.0]
[1731089109147,0.7583,2918.0,2917.1,3.0]
[1731089109348,0.7583,2918.0,2917.2,0.70768867]
[1731089112351,0.7583,2918.0,2917.3,3.35783578]
[1731089112623,0.91357918,2918.9,2918.0,3.0]
[1731089112823,0.2,2919.5,2917.9,3.28928669]
[1731089112824,0.8279,2919.2,2918.7,3.28928669]
[1731089113030,0.8279,2919.2,2919.0,3.28928669]
[1731089113665,0.8279,2919.2,2918.8,3.32892867]
[1731089114966,1.0057,2919.5,2918.9,0.06851414]
[1731089115143,19.97295613,2919.1,2918.9,0.06851414]
[1731089115339,19.97295613,2919.1,2919.0,0.33974428]
[1731089117770,19.97295613,2919.1,2918.8,0.32892867]
[1731089117932,19.97295613,2919.1,2918.7,3.28928669]
[1731089119964,0.7656,2919.0,2918.7,3.28928669]
[1731089121776,0.7656,2919.0,2918.3,0.7894]
[1731089121995,0.7656,2919.0,2918.6,3.28928669]
[1731089123377,19.97295613,2919.1,2918.9,3.28928669]
[1731089123579,19.97295613,2919.1,2919.0,0.32892867]
[1731089123867,19.97295613,2919.1,2919.0,0.87892867]
[1731089124980,20.80265613,2919.1,2918.4,0.55]
[1731089125151,19.97295613,2919.1,2918.8,3.28928669]
[1731089128894,19.97295613,2919.1,2918.9,0.55]
[1731089129200,19.97295613,2919.1,2918.9,3.55]
[1731089129387,19.97295613,2919.1,2919.0,1.30243529]
[1731089129756,19.97295613,2919.1,2919.0,5.10953529]
[1731089130491,19.97295613,2919.1,2919.0,2.04102867]
[1731089130903,19.97295613,2919.1,2919.0,6.83928669]
[1731089132399,19.97295613,2919.1,2919.0,6.28928669]
[1731089132595,0.8225,2919.0,2918.4,0.8224]
[1731089132809,0.8225,2919.0,2918.6,3.28928669]
[1731089133100,0.8225,2919.0,2918.6,0.41116867]
[1731089133407,0.90814474,2919.0,2917.9,0.35524591]
[1731089134055,0.90814474,2919.0,2917.4,4.08738669]
[1731089134504,3.08564474,2919.0,2917.2,0.70768867]
[1731089134719,0.8286,2918.7,2917.1,3.64660217]
[1731089134895,3.28928669,2918.2,2917.1,0.71252453]
[1731089135204,3.28928669,2918.2,2916.7,1.370436]
[1731089135205,0.8286,2918.0,2916.7,1.370436]
[1731089135373,0.91429724,2917.9,2916.8,0.24132973]
[1731089136558,0.91429724,2917.9,2916.8,3.24132973]
[1731089136787,0.91429724,2917.9,2916.9,0.55]
[1731089136967,0.91429724,2917.9,2917.0,0.89525524]
[1731089137598,0.91429724,2917.9,2917.0,4.18454193]
[1731089137803,0.91429724,2917.9,2917.1,3.52296916]
[1731089138872,0.8286,2917.9,2917.3,0.55]
[1731089139497,0.8286,2917.9,2917.2,0.55]
[1731089140823,0.8286,2917.9,2917.4,0.55]
[1731089140975,0.8286,2917.9,2917.4,3.55]
[1731089141171,0.8286,2917.9,2917.6,0.55]
[1731089141501,0.8286,2917.9,2917.6,0.61854062]
[1731089141707,0.7907,2918.6,2917.6,3.90782731]
[1731089141875,0.08567508,2918.5,2917.6,3.90782731]
[1731089144010,0.08567508,2918.5,2917.7,3.0]
[1731089144323,0.7907,2918.4,2917.8,0.69078273]
[1731089144507,0.08567277,2918.3,2917.8,0.69078273]
[1731089145515,0.7907,2918.2,2917.6,0.55]
[1731089146288,0.8307,2919.3,2918.1,0.55]
[1731089146530,0.8307,2919.1,2918.4,3.55]
[1731089148145,0.8307,2919.1,2918.5,0.06851951]
[1731089148286,0.2,2919.5,2918.7,0.55]
[1731089148494,0.7846,2919.4,2918.9,3.28928669]
[1731089149393,0.2,2919.5,2919.0,3.06851155]
[1731089149620,0.2,2919.5,2919.1,0.63577982]
[1731089149796,0.2,2919.5,2919.2,0.06850454]
[1731089151237,0.2,2919.5,2919.1,0.63577982]
[1731089151539,0.2,2919.5,2919.0,3.0]
[1731089152628,0.2,2919.5,2918.6,3.65113864]
[1731089152840,0.2,2919.5,2918.7,3.55]
[1731089153137,0.7847,2919.4,2918.7,3.55]
[1731089154103,0.08564277,2919.3,2918.7,3.0]
[1731089154317,0.08564277,2919.3,2918.6,0.36185195]
[1731089154631,0.806,2919.2,2918.0,3.28928669]
[1731089154785,0.806,2919.0,2917.8,0.827]
[1731089154990,0.806,2918.8,2917.8,0.827]
[1731089155306,0.7837,2918.6,2917.8,0.42350276]
[1731089155501,0.7837,2918.6,2917.7,3.28928669]
[1731089157131,0.7837,2918.6,2917.8,3.55]
[1731089160999,0.7837,2918.6,2917.9,0.06853275]
[1731089161439,0.7837,2918.6,2918.0,3.28928669]
[1731089162161,0.7837,2918.6,2918.3,3.28928669]
[1731089162444,0.79,2919.4,2918.5,0.55]
[1731089162599,0.79,2919.4,2919.1,3.0]
[1731089162949,0.79,2919.4,2918.6,0.06851297]
[1731089163112,0.79,2919.4,2918.7,0.55]
[1731089163317,0.7915,2919.2,2918.7,0.55]
[1731089163865,0.7915,2919.0,2918.0,0.55]
[1731089164056,0.7915,2918.8,2917.8,0.55]
[1731089164201,0.7915,2918.6,2917.8,1.01019414]
[1731089164402,0.7915,2918.6,2918.0,0.55]
[1731089164856,0.7638,2918.9,2918.1,0.83093115]
[1731089165424,0.7638,2918.9,2918.3,0.55]
[1731089166948,0.7519,2919.4,2918.6,3.0]
[1731089167258,0.08564715,2919.3,2918.6,3.06851772]
[1731089167670,0.08564715,2919.3,2918.6,3.0]
[1731089167971,0.08564715,2919.3,2918.6,3.70519414]
[1731089169964,0.7519,2919.4,2918.7,1.41731772]
[1731089170179,0.2,2919.5,2919.0,4.60194138]
[1731089170334,0.2,2919.5,2919.1,3.06850468]
[1731089171378,0.2,2919.5,2919.1,3.0]
[1731089171565,0.2,2919.5,2919.2,0.70519414]
[1731089173299,0.7521,2919.4,2918.7,3.0]
[1731089173598,0.7521,2919.4,2918.8,0.06851403]
[1731089174458,0.08564255,2919.3,2918.3,0.8159]
[1731089174795,0.08564255,2919.3,2917.8,0.48019414]
[1731089174796,0.84424255,2919.3,2918.0,4.84124138]
[1731089175002,0.84424255,2919.3,2918.1,0.55264569]
[1731089175295,0.84424255,2919.3,2918.1,0.98233595]
[1731089175494,0.84424255,2919.3,2918.1,0.91381817]
[1731089176001,0.84424255,2919.3,2918.2,0.55]
[1731089176354,0.84424255,2919.3,2918.3,0.0685155]
[1731089176698,0.84424255,2919.3,2918.4,0.55]
[1731089177001,0.84424255,2919.3,2918.2,0.55]
[1731089177301,0.84424255,2919.3,2918.4,0.55]
[1731089178010,0.7586,2919.3,2918.6,0.55]
[1731089178205,0.7586,2919.3,2918.7,0.06851555]
[1731089180994,0.08564446,2919.2,2918.5,3.0]
[1731089181197,0.8263,2919.1,2918.5,3.0]
[1731089181907,0.8263,2919.1,2918.6,0.55]
[1731089182271,0.8263,2919.1,2918.7,0.06851555]
[1731089182669,9.35158013,2918.0,2917.9,0.56]
[1731089183023,9.35158013,2918.0,2917.9,4.60194138]
[1731089183167,9.35158013,2918.0,2917.9,5.57863871]
[1731089183494,9.35158013,2918.0,2917.9,5.69774279]
[1731089184758,9.35158013,2918.0,2917.9,8.68774279]
[1731089185077,9.35158013,2918.0,2917.9,8.29385659]
[1731089185265,9.35158013,2918.0,2917.9,8.30385659]
[1731089185809,9.35158013,2918.0,2917.9,9.05625659]
[1731089187706,9.35158013,2918.0,2917.9,9.04625659]
[1731089187908,9.35158013,2918.0,2917.9,9.05625659]
[1731089188673,9.35158013,2918.0,2917.9,9.04625659]
[1731089188876,9.35158013,2918.0,2917.9,7.05194138]
[1731089189176,9.35158013,2918.0,2917.9,7.1204763]
[1731089189379,9.35158013,2918.0,2917.9,6.36125901]
[1731089193829,10.16928013,2918.0,2917.9,0.06853492]
[1731089194121,0.90337131,2917.9,2917.8,0.35503629]
[1731089194324,0.8177,2917.8,2917.0,3.29272409]
[1731089194482,0.8177,2917.8,2917.3,0.35518761]
[1731089198095,0.8177,2917.8,2917.4,0.0685492]
[1731089200555,0.8177,2917.8,2917.4,4.12357937]
[1731089200709,0.8177,2917.8,2917.5,0.4478767]
[1731089200903,9.35158013,2918.0,2917.6,0.06854188]
[1731089204021,9.35158013,2918.0,2917.5,3.4478767]
[1731089204222,9.35158013,2918.0,2917.6,0.55]
[1731089205343,9.35158013,2918.0,2917.8,4.60503017]
[1731089205546,9.35158013,2918.0,2917.9,3.54724654]
[1731089206804,9.35158013,2918.0,2917.6,0.12067271]
[1731089207007,9.35158013,2918.0,2917.6,0.55]
[1731089207557,4.28092349,2918.0,2917.9,7.60503017]
[1731089207762,3.03289409,2918.0,2917.9,0.55]
[1731089208042,3.03289409,2918.0,2917.9,7.8208571]
[1731089208502,3.03289409,2918.0,2917.9,7.88938864]
[1731089209139,2.66079409,2918.0,2917.9,7.88938548]
[1731089209452,0.8126,2919.1,2918.1,0.7544]
[1731089209744,0.8126,2919.1,2918.7,3.0]
[1731089210311,0.7787,2919.4,2919.0,4.05503017]
[1731089210517,0.7787,2919.4,2919.1,0.06850653]
[1731089213109,0.2,2919.5,2919.1,0.06850653]
[1731089214372,0.2,2919.5,2919.1,0.4808602]
[1731089215483,0.2,2919.5,2919.3,4.05503017]
[1731089215682,0.2,2919.5,2919.4,0.06849589]
[1731089216759,0.2,2919.5,2919.4,3.61849589]
[1731089218323,0.2,2919.5,2919.4,3.55]
[1731089218484,0.2,2919.5,2919.4,4.38737302]
[1731089218886,0.2,2919.5,2919.4,4.50968918]
[1731089219395,0.9575,2919.5,2919.4,0.83737302]
[1731089219606,0.9575,2919.5,2919.2,3.0]
[1731089220301,0.9575,2919.5,2919.3,0.06850111]
[1731089220709,0.2,2919.5,2919.3,0.06850111]
[1731089220913,0.2,2919.5,2919.4,6.28960589]
[1731089221212,0.2,2919.5,2919.4,7.47541659]
[1731089222292,0.2,2919.5,2919.4,6.92541659]
[1731089224230,0.2,2919.5,2919.1,0.41235367]
[1731089224231,0.9957,2919.5,2919.1,0.41235367]
[1731089224396,0.9957,2919.5,2918.9,3.28960589]
[1731089225096,0.7644,2919.4,2918.6,3.28960589]
[1731089225334,0.7644,2919.2,2918.2,0.43144]
[1731089225529,0.8154,2919.0,2918.2,0.43144]
[1731089225736,0.8154,2918.8,2918.1,3.64472646]
[1731089225886,0.90106337,2918.7,2918.1,0.35512057]
[1731089226086,0.90106337,2918.7,2917.8,3.28960589]
[1731089226346,0.90106337,2918.7,2917.9,0.06853675]
[1731089226487,0.90106337,2918.7,2917.8,3.28960589]
[1731089226694,0.90106337,2918.7,2917.8,3.61856648]
[1731089227287,0.90106337,2918.7,2917.5,4.05370349]
[1731089227733,0.08567095,2918.6,2917.5,4.40898327]
[1731089228032,0.7564,2918.5,2917.9,4.05370349]
[1731089228238,0.7564,2918.5,2918.0,0.06852896]
[1731089228542,0.7626,2918.8,2918.3,4.05370349]
[1731089228698,0.7626,2918.8,2918.4,0.06852214]
[1731089230284,0.7626,2918.8,2917.6,0.8327]
[1731089230626,0.7626,2918.8,2917.8,3.0]
[1731089230785,0.8059,2918.6,2917.9,0.06853288]
[1731089231931,0.8059,2918.6,2917.8,3.78864035]
[1731089232651,0.8059,2918.6,2917.9,0.06853283]
[1731089233838,0.8059,2918.6,2917.8,3.78864035]
[1731089236279,0.8059,2918.6,2917.9,0.06852783]
[1731089236627,0.8059,2918.6,2918.0,0.38571682]
[1731089236776,0.8059,2918.6,2918.1,0.06852781]
[1731089237226,0.8059,2918.6,2918.0,0.38571682]
[1731089238931,0.8059,2918.6,2918.1,4.12223124]
[1731089239379,0.7533,2919.4,2918.3,0.55]
[1731089239677,0.7533,2919.4,2918.4,0.24548025]
[1731089239974,0.7533,2919.4,2918.6,4.05370349]
[1731089240696,0.7533,2919.4,2918.5,0.55]
[1731089242053,0.7533,2919.4,2918.6,0.06851185]
[1731089242256,0.7533,2919.4,2918.8,4.05370349]
[1731089242454,0.7533,2919.4,2918.9,0.47387868]
[1731089242660,0.7533,2919.4,2918.5,3.0]
[1731089242880,0.8227,2919.2,2918.1,3.0]
[1731089243186,0.8227,2919.0,2918.2,0.06852606]
[1731089243985,0.7526,2918.9,2917.8,0.35751881]
[1731089244202,0.83825698,2918.9,2917.8,0.35751881]
[1731089244474,0.84825698,2918.9,2917.8,0.35751881]
[1731089244670,0.85825698,2918.9,2917.6,0.3552014]
[1731089245779,0.01,2918.7,2917.6,0.3552014]
[1731089245974,0.7566,2918.6,2917.6,0.3552014]
[1731089246141,0.84228467,2918.5,2917.6,0.3552014]
[1731089246943,0.84228467,2918.5,2917.1,0.35756218]
[1731089247048,0.84228467,2918.5,2917.2,0.35515229]
[1731089247255,0.02,2918.4,2917.2,0.35515229]
[1731089247572,0.88509309,2918.3,2917.2,0.06855447]
[1731089248783,0.88509309,2918.3,2916.9,4.05370349]
[1731089249216,0.88509309,2918.3,2917.0,0.06855158]
[1731089249468,0.88509309,2918.3,2917.3,3.0]
[1731089249689,0.7994,2918.3,2917.4,0.06854283]
[1731089249880,0.7994,2918.3,2917.5,0.30685428]
[1731089250044,0.7994,2918.3,2917.6,0.06853885]
[1731089250239,0.7994,2918.3,2917.5,0.30685428]
[1731089250742,0.7994,2918.3,2916.8,4.05370349]
[1731089250743,0.0856735,2918.2,2916.8,4.05370349]
[1731089250940,0.7857,2918.1,2916.9,3.06855148]
[1731089251177,0.7689,2917.9,2916.9,3.06855148]
[1731089251382,0.7689,2917.9,2917.1,3.0]
[1731089251540,0.7689,2917.9,2917.2,0.69804983]
[1731089252842,0.7689,2917.9,2917.2,0.62950248]
[1731089253486,0.7546,2917.7,2917.0,3.29502481]
[1731089254193,0.7546,2917.7,2916.7,3.65017559]
[1731089254389,0.784,2917.5,2916.7,3.65017559]
[1731089254694,0.784,2917.3,2916.7,3.7187393]
[1731089254838,0.784,2917.3,2916.8,0.40763065]
[1731089255776,0.784,2917.3,2916.9,0.06855942]
[1731089257487,0.784,2917.3,2917.0,3.29502481]
[1731089259196,0.8103,2918.2,2917.1,3.0]
[1731089259425,7.49,2918.5,2917.1,3.0]
[1731089259426,0.08568595,2918.1,2917.2,0.06854876]
[1731089259564,3.0,2918.5,2917.2,0.06854876]
[1731089259565,0.8103,2918.0,2917.2,0.06854876]
[1731089260092,0.8103,2918.0,2917.6,3.29502481]
[1731089261666,0.8103,2918.4,2917.9,3.29502481]
[1731089261865,0.8103,2918.4,2918.0,0.39803123]
[1731089262061,0.8103,2918.4,2918.0,0.32950248]
[1731089262490,0.8103,2918.4,2918.0,0.39803202]
[1731089262684,0.8103,2918.4,2918.0,0.32950248]
[1731089262906,0.8103,2918.4,2917.6,3.29502481]
[1731089263452,0.8103,2918.4,2917.9,3.29502481]
[1731089263695,0.8103,2918.4,2918.0,0.06853173]
[1731089264574,0.8103,2918.4,2917.9,3.29502481]
[1731089264900,0.8103,2918.4,2918.0,0.06853174]
[1731089265196,0.8103,2918.4,2918.1,0.33635566]
[1731089269338,0.08566094,2919.2,2918.1,0.33635566]
[1731089269339,0.7823,2919.1,2918.2,0.06852757]
[1731089269539,0.08565535,2919.0,2918.1,0.33635566]
[1731089272284,0.7848,2918.9,2918.1,0.33635566]
[1731089272496,0.7848,2918.7,2918.0,3.0]
[1731089276276,0.7848,2918.7,2918.1,0.06853]
[1731089277079,0.7848,2918.7,2917.7,0.8086]
[1731089277278,0.7848,2918.7,2917.7,3.8086]
[1731089277455,0.7848,2918.7,2917.8,0.7253557]
[1731089277850,0.7848,2918.7,2917.6,3.29502481]
[1731089278162,0.7732,2918.5,2917.3,3.6500095]
[1731089278333,0.7732,2918.3,2917.3,3.6500095]
[1731089278535,0.7732,2918.1,2917.3,3.6500095]
[1731089278842,0.7732,2918.1,2917.4,0.44030095]
[1731089278843,0.08568069,2918.0,2917.4,0.44030095]
[1731089279059,0.08568069,2918.0,2917.3,0.42353271]
[1731089279968,0.08568069,2918.0,2917.3,0.35498469]
[1731089281171,0.7756,2917.9,2917.3,0.35498469]
[1731089281487,0.7756,2917.7,2917.3,0.35498469]
[1731089281638,0.0856943,2917.6,2916.7,0.8285]
[1731089281844,0.7756,2917.7,2916.9,3.29502481]
[1731089282094,0.7756,2917.7,2917.0,0.06855538]
[1731089283482,0.7756,2917.7,2916.9,3.29502481]
[1731089284893,0.7756,2917.7,2917.0,0.06854855]
[1731089285109,0.7756,2917.7,2917.2,3.29502481]
[1731089285287,0.08569428,2918.2,2917.0,3.06854855]
[1731089285288,0.813,2918.0,2917.5,3.29502481]
[1731089289431,0.813,2918.0,2917.6,0.06854186]
[1731089289826,0.813,2918.0,2917.5,3.29502481]
[1731089293339,0.813,2918.0,2916.9,4.06382481]
[1731089293524,0.7719,2917.8,2917.0,0.0685539]
[1731089294663,0.7719,2917.8,2917.2,3.29502481]
[1731089294836,0.7719,2917.8,2917.3,0.06854755]
[1731089295034,0.7719,2917.8,2917.2,3.36357339]
[1731089295237,0.7719,2917.8,2917.3,0.33635734]
[1731089295431,0.7719,2917.8,2917.2,3.29502481]
[1731089298334,0.7719,2917.8,2917.3,0.06854824]
[1731089299475,0.7938,2918.7,2917.5,3.29502481]
[1731089299683,0.7938,2918.7,2917.8,3.29502481]
[1731089299846,0.7938,2918.7,2917.9,0.06853336]
[1731089300045,0.0856667,2918.6,2917.9,0.33635582]
[1731089300586,0.7938,2918.5,2917.9,0.40488914]
[1731089300961,0.7938,2918.5,2917.9,0.33635582]
[1731089301594,0.7938,2918.5,2918.0,0.06853324]
[1731089303097,0.7938,2918.5,2917.9,0.33635582]
[1731089303248,0.08566642,2918.4,2917.2,4.08742481]
[1731089303451,0.7882,2918.6,2917.3,3.0]
[1731089303684,0.7782,2918.4,2917.3,3.06854743]
[1731089303906,0.7782,2918.2,2917.3,3.06854743]
[1731089304072,0.08568429,2918.3,2917.3,3.06854743]
[1731089304073,0.7782,2918.0,2917.3,3.70490465]
[1731089306809,0.7782,2918.0,2917.3,3.63635722]
[1731089307500,0.7782,2918.0,2917.4,0.06854308]
[1731089308210,0.7782,2918.0,2917.5,3.29502481]
[1731089308419,0.01,2919.2,2917.8,3.29502481]
[1731089308420,0.8331,2919.0,2917.8,3.29502481]
[1731089308583,0.792,2918.8,2917.9,0.06853547]
[1731089308776,0.792,2918.6,2917.5,3.29502481]
[1731089309109,0.792,2918.4,2917.6,0.06854295]
[1731089309263,0.0856759,2918.3,2917.6,0.06854295]
[1731089309666,0.0856759,2918.3,2917.5,3.62452729]
[1731089310274,0.792,2918.4,2917.5,3.62452729]
[1731089311308,0.90787186,2918.3,2917.0,1.24018305]
[1731089311526,0.90787186,2918.3,2917.0,0.7989]
[1731089311670,0.90787186,2918.3,2917.0,3.7989]
[1731089311869,0.90787186,2918.3,2917.2,3.29502481]
[1731089312427,0.90787186,2918.3,2917.2,3.70441729]
[1731089312606,0.90787186,2918.3,2917.3,0.06854708]
[1731089312808,0.8222,2918.3,2917.5,3.29502481]
[1731089313009,0.8222,2918.3,2917.6,0.06853703]
[1731089314244,0.8222,2918.3,2917.5,4.07392481]
[1731089314420,0.8222,2918.3,2917.6,0.40739248]
[1731089314631,0.8222,2918.3,2917.7,0.06853742]
[1731089315036,0.8222,2918.3,2917.6,0.40739248]
[1731089315574,0.8222,2918.3,2917.7,0.06853741]
[1731089315924,0.8222,2918.3,2917.6,0.40739248]
[1731089316148,0.8222,2918.3,2917.7,0.44813173]
[1731089316426,0.8222,2918.3,2917.3,3.0]
[1731089316656,0.8182,2918.1,2917.3,3.0]
[1731089316829,0.8182,2917.9,2917.2,3.70441729]
[1731089317435,0.8182,2917.9,2917.0,3.0]
[1731089317640,0.8182,2917.9,2916.9,4.00783019]
[1731089317923,0.8182,2917.7,2916.9,0.35528628]
[1731089318179,0.8182,2917.5,2916.6,3.29502481]
[1731089318336,0.8182,2917.3,2916.6,3.29502481]
[1731089318659,0.8182,2917.3,2916.6,3.66028208]
[1731089319071,0.8182,2917.3,2916.3,3.29502481]
[1731089319275,0.8181,2917.1,2916.0,3.29502481]
[1731089319456,0.01,2917.6,2916.0,3.29502481]
[1731089319457,0.8181,2916.9,2916.0,3.65260043]
[1731089319670,0.8181,2916.9,2916.1,0.06857331]
[1731089319976,0.8181,2916.9,2916.3,3.29502481]
[1731089320179,0.8181,2916.9,2916.4,0.0685663]
[1731089320537,0.8181,2916.9,2916.3,3.29502481]
[1731089320940,0.8181,2916.9,2916.6,3.29502481]
[1731089321171,0.8181,2916.9,2916.7,0.32950248]
[1731089321544,0.55,2918.0,2916.7,0.32950248]
[1731089321750,0.55,2917.8,2916.6,3.29502481]
[1731089322080,0.8818025,2917.7,2916.6,3.29502481]
[1731089322487,0.8818025,2917.7,2916.7,3.0]
[1731089322488,0.7961,2917.7,2916.7,3.0]
[1731089322657,0.7961,2917.7,2916.8,0.06855477]
[1731089322855,0.7961,2917.7,2916.9,0.38378548]
[1731089323444,0.7961,2917.7,2917.0,0.06855477]
[1731089323783,0.7961,2917.7,2917.2,3.29502481]
[1731089325450,0.7961,2917.7,2917.0,3.0]
[1731089327112,0.7961,2917.7,2917.0,3.14843253]
[1731089327272,0.7961,2917.7,2917.1,0.68272428]
[1731089330557,0.7961,2917.7,2917.2,0.06855191]
[1731089331509,0.7961,2917.7,2917.1,0.68272428]
[1731089331808,0.7961,2917.7,2917.2,0.06855187]
[1731089333997,0.7961,2917.7,2917.2,3.36357668]
[1731089334303,0.7961,2917.7,2917.3,0.4046301]
[1731089334467,0.7961,2917.7,2917.4,0.06854559]
[1731089335011,0.7923,2918.4,2917.3,0.4046301]